fUSD/lending_fUSD_20260517
["ID","MTS","AMOUNT","RATE_DAILY","PERIOD"]
[422519446,1779023441000,-4934.38334728,0.00012826,2]
[422519448,1779023441000,-265.91782473,0.00012826,2]
[422519442,1779023441000,-2000.0,0.00012793,2]
[422519440,1779023441000,-33183.3746,0.00012793,2]
[422519444,1779023441000,-900.0,0.000128,4]
[422519450,1779023441000,-300.0,0.00012859,2]
[422519460,1779023441000,-300.0,0.0001301,2]
[422519462,1779023441000,-169.31,0.00013011,2]
[422519456,1779023441000,-275.22,0.00012877,2]
[422519558,1779023441000,-2138.18,0.00013698,2]
[422519464,1779023441000,-209.19230366,0.00013011,2]
[422519458,1779023441000,-1100.0,0.000129,4]
[422519493,1779023441000,-500.0,0.00013698,2]
[422519452,1779023441000,-100146.4591377,0.0001286,2]
[422519466,1779023441000,-770.75100628,0.00013011,2]
[422519468,1779023441000,-500.0,0.00013055,2]
[422519470,1779023441000,-1180.53,0.00013117,2]
[422519474,1779023441000,-3855.34757109,0.00013311,2]
[422519477,1779023441000,-10086.91771489,0.00013361,2]
[422519475,1779023441000,-500.0,0.00013328,2]
[422519485,1779023441000,-300.0,0.00013697,2]
[422519489,1779023441000,-500.0,0.00013698,2]
[422519479,1779023441000,-169.31,0.00013526,2]
[422519487,1779023441000,-300.0,0.00013697,2]
[422519481,1779023441000,-500.0,0.00013602,2]
[422519483,1779023441000,-10086.91771489,0.00013618,2]
[422519454,1779023441000,-3855.34757109,0.00012869,2]
[422519560,1779023441000,-2138.18,0.00013698,2]
[422519643,1779023441000,-583.1,0.00013698,2]
[422519544,1779023441000,-500.0,0.00013698,2]
[422519627,1779023441000,-892.48,0.00013698,2]
[422519616,1779023441000,-892.48,0.00013698,2]
[422519629,1779023441000,-892.48,0.00013698,2]
[422519619,1779023441000,-892.48,0.00013698,2]
[422519631,1779023441000,-892.48,0.00013698,2]
[422519621,1779023441000,-892.48,0.00013698,2]
[422519633,1779023441000,-892.48,0.00013698,2]
[422519623,1779023441000,-892.48,0.00013698,2]
[422519637,1779023441000,-892.48,0.00013698,2]
[422519635,1779023441000,-892.48,0.00013698,2]
[422519641,1779023441000,-892.58,0.00013698,2]
[422519646,1779023441000,-583.1,0.00013698,2]
[422519658,1779023441000,-583.1,0.00013698,2]
[422519656,1779023441000,-583.1,0.00013698,2]
[422519654,1779023441000,-583.1,0.00013698,2]
[422519639,1779023441000,-892.48,0.00013698,2]
[422519648,1779023441000,-583.1,0.00013698,2]
[422519650,1779023441000,-583.1,0.00013698,2]
[422519652,1779023441000,-583.1,0.00013698,2]
[422519661,1779023441000,-583.1,0.00013698,2]
[422519660,1779023441000,-583.1,0.00013698,2]
[422519669,1779023441000,-583.1,0.00013698,2]
[422519665,1779023441000,-583.1,0.00013698,2]
[422519667,1779023441000,-583.1,0.00013698,2]
[422519562,1779023441000,-2138.18,0.00013698,2]
[422519614,1779023441000,-892.48,0.00013698,2]
[422519625,1779023441000,-892.48,0.00013698,2]
[422519663,1779023441000,-583.1,0.00013698,2]
[422519609,1779023441000,-892.48,0.00013698,2]
[422519548,1779023441000,-500.0,0.00013698,2]
[422519552,1779023441000,-348.82,0.00013698,2]
[422519566,1779023441000,-2138.18,0.00013698,2]
[422519550,1779023441000,-500.0,0.00013698,2]
[422519564,1779023441000,-2138.18,0.00013698,2]
[422519554,1779023441000,-2138.18,0.00013698,2]
[422519568,1779023441000,-2138.18,0.00013698,2]
[422519570,1779023441000,-2138.18,0.00013698,2]
[422519575,1779023441000,-2138.18,0.00013698,2]
[422519577,1779023441000,-2138.18,0.00013698,2]
[422519582,1779023441000,-892.48,0.00013698,2]
[422519580,1779023441000,-2138.18,0.00013698,2]
[422519572,1779023441000,-2138.18,0.00013698,2]
[422519584,1779023441000,-2138.18,0.00013698,2]
[422519611,1779023441000,-892.48,0.00013698,2]
[422519605,1779023441000,-2138.18,0.00013698,2]
[422519579,1779023441000,-2138.18,0.00013698,2]
[422519603,1779023441000,-892.48,0.00013698,2]
[422519607,1779023441000,-892.48,0.00013698,2]
[422519599,1779023441000,-2138.18,0.00013698,2]
[422519612,1779023441000,-892.48,0.00013698,2]
[422519597,1779023441000,-892.48,0.00013698,2]
[422519595,1779023441000,-2138.18,0.00013698,2]
[422519593,1779023441000,-892.48,0.00013698,2]
[422519588,1779023441000,-2138.18,0.00013698,2]
[422519586,1779023441000,-892.48,0.00013698,2]
[422519601,1779023441000,-892.48,0.00013698,2]
[422519755,1779023442000,-500.0,0.00013698,2]
[422519736,1779023442000,-500.0,0.00013698,2]
[422519749,1779023442000,-500.0,0.00013698,2]
[422519746,1779023442000,-423.78478038,0.00013698,2]
[422519744,1779023442000,-500.0,0.00013698,2]
[422519738,1779023442000,-500.0,0.00013698,2]
[422519734,1779023442000,-500.0,0.00013698,2]
[422519751,1779023442000,-500.0,0.00013698,2]
[422519753,1779023442000,-500.0,0.00013698,2]
[422519742,1779023442000,-500.0,0.00013698,2]
[422519797,1779023442000,-500.0,0.00013698,2]
[422519759,1779023442000,-573.0866294,0.00013698,2]
[422519766,1779023442000,-500.0,0.00013698,2]
[422519762,1779023442000,-500.0,0.00013698,2]
[422519768,1779023442000,-500.0,0.00013698,2]
[422519764,1779023442000,-500.0,0.00013698,2]
[422519776,1779023442000,-500.0,0.00013698,2]
[422519772,1779023442000,-500.0,0.00013698,2]
[422519774,1779023442000,-505.8622315,0.00013698,2]
[422519789,1779023442000,-500.0,0.00013698,2]
[422519791,1779023442000,-500.0,0.00013698,2]
[422519740,1779023442000,-500.0,0.00013698,2]
[422519757,1779023442000,-500.0,0.00013698,2]
[422519731,1779023442000,-500.0,0.00013698,2]
[422519707,1779023442000,-500.0,0.00013698,2]
[422519725,1779023442000,-500.0,0.00013698,2]
[422519796,1779023442000,-500.0,0.00013698,2]
[422519674,1779023442000,-583.1,0.00013698,2]
[422519686,1779023442000,-583.1,0.00013698,2]
[422519684,1779023442000,-583.1,0.00013698,2]
[422519676,1779023442000,-583.1,0.00013698,2]
[422519680,1779023442000,-583.1,0.00013698,2]
[422519682,1779023442000,-583.1,0.00013698,2]
[422519678,1779023442000,-583.1,0.00013698,2]
[422519671,1779023442000,-583.1,0.00013698,2]
[422519698,1779023442000,-500.0,0.00013698,2]
[422519705,1779023442000,-500.0,0.00013698,2]
[422519729,1779023442000,-500.0,0.00013698,2]
[422519709,1779023442000,-500.0,0.00013698,2]
[422519690,1779023442000,-583.1341162,0.00013698,2]
[422519700,1779023442000,-500.0,0.00013698,2]
[422519695,1779023442000,-500.0,0.00013698,2]
[422519694,1779023442000,-500.0,0.00013698,2]
[422519692,1779023442000,-500.0,0.00013698,2]
[422519702,1779023442000,-500.0,0.00013698,2]
[422519704,1779023442000,-500.0,0.00013698,2]
[422519727,1779023442000,-500.0,0.00013698,2]
[422519713,1779023442000,-500.0,0.00013698,2]
[422519711,1779023442000,-500.0,0.00013698,2]
[422519723,1779023442000,-500.0,0.00013698,2]
[422519688,1779023442000,-583.1,0.00013698,2]
[422519793,1779023442000,-500.0,0.00013698,2]
[422519770,1779023442000,-500.0,0.00013698,2]
[422519795,1779023442000,-500.0,0.00013698,2]
[422519819,1779023442000,-300.0,0.00013989,2]
[422519820,1779023442000,-21790.16115563,0.0001399,2]
[422519826,1779023442000,-166.66,0.00014155,2]
[422519825,1779023442000,-500.0,0.0001415,2]
[422519829,1779023442000,-166.66,0.00014384,2]
[422519832,1779023442000,-169.31,0.00014558,2]
[422519834,1779023442000,-3855.34757109,0.00014635,2]
[422519828,1779023442000,-433.0,0.0001432,2]
[422519827,1779023442000,-3855.34757109,0.00014193,2]
[422519830,1779023442000,-10086.91771489,0.00014387,2]
[422519833,1779023442000,-1180.53,0.00014575,2]
[422519835,1779023442000,-10086.91771489,0.00014644,2]
[422519831,1779023442000,-500.0,0.00014424,2]
[422519837,1779023442000,-163.66,0.00014752,2]
[422519838,1779023442000,-500.0,0.00014826,2]
[422519839,1779023442000,-192.02289105,0.000149,2]
[422519848,1779023442000,-19089.69295325,0.00015,2]
[422519836,1779023442000,-500.0,0.00014698,2]
[422519840,1779023442000,-10086.91771489,0.000149,2]
[422519843,1779023442000,-300.0,0.00014999,2]
[422519845,1779023442000,-219787.76384302,0.00015,2]
[422519841,1779023442000,-500.0,0.00014972,2]
[422519778,1779023442000,-500.0,0.00013698,2]
[422519817,1779023442000,-2000.0,0.00013935,2]
[422519818,1779023442000,-500.0,0.00013945,2]
[422519821,1779023442000,-250.0,0.00014,2]
[422519815,1779023442000,-500.0,0.00013876,2]
[422519798,1779023442000,-500.0,0.00013698,2]
[422519780,1779023442000,-500.0,0.00013698,2]
[422519785,1779023442000,-500.0,0.00013698,2]
[422519783,1779023442000,-500.0,0.00013698,2]
[422519787,1779023442000,-500.0,0.00013698,2]
[422519799,1779023442000,-530.09266044,0.00013698,2]
[422519801,1779023442000,-166.66,0.00013699,2]
[422519802,1779023442000,-2500.0,0.00013699,2]
[422519805,1779023442000,-467.08,0.000137,2]
[422519816,1779023442000,-166.66,0.00013927,2]
[422519808,1779023442000,-855.888319,0.0001371,2]
[422519806,1779023442000,-150.0,0.000137,2]
[422519803,1779023442000,-200.0,0.00013699,2]
[422519804,1779023442000,-1000.0,0.00013699,2]
[422519809,1779023442000,-1122.550318,0.00013721,2]
[422519800,1779023442000,-639.86,0.00013698,2]
[422519810,1779023442000,-1814.034605,0.00013721,2]
[422519811,1779023442000,-2074.820865,0.00013721,2]
[422519812,1779023442000,-3855.34757109,0.00013752,2]
[422519813,1779023442000,-759.87,0.0001378,2]
[422519822,1779023442000,-16034.77100171,0.00014001,2]
[422519824,1779023442000,-10086.91771489,0.00014131,2]
[422519807,1779023442000,-2822.698065,0.0001371,2]
[422519814,1779023442000,-10086.91771489,0.00013874,2]
[422519823,1779023442000,-169.31,0.00014042,2]
[422519931,1779023443000,-7831.5,0.00015,2]
[422519909,1779023443000,-385.37550314,0.00013698,2]
[422519907,1779023443000,-209.19230366,0.00013698,2]
[422519911,1779023443000,-2692.4321932,0.00015,2]
[422519939,1779023446000,-1826.1431495,0.00015,2]
[422519934,1779023446000,-605.53870129,0.00015,2]
[422519935,1779023446000,-919.10183101,0.00015,2]
[422519936,1779023446000,-2430.59892602,0.00015,2]
[422519937,1779023446000,-1401.99705,0.00015,2]
[422519940,1779023446000,-279.458431,0.00015,2]
[422519941,1779023446000,-7580.86741513,0.00015,2]
[422519943,1779023446000,-783.1693924,0.00015,2]
[422519942,1779023446000,-3538.009619,0.00015,2]
[422519938,1779023446000,-845.0235,0.00015,2]
[422519944,1779023540000,648.78002844,0.00012507,2]
[422519945,1779023568000,259.02074717,0.00012507,2]
[422519946,1779023592000,185.45219776,0.00012492,2]
[422519947,1779023640000,300.0,0.00012591,2]
[422519949,1779023661000,177.82,7.779e-05,2]
[422519950,1779023677000,1200.0,0.00012591,2]
[422519951,1779023701000,300.0,0.00012591,2]
[422519953,1779023701000,203.84380729,0.00012591,2]
[422519952,1779023701000,1200.0,0.00012591,2]
[422519955,1779023795000,155.58103263,0.00030094,120]
[422519956,1779023823000,233.37154895,0.00030094,120]
[422519957,1779023828000,5372.372924,7.945e-05,2]
[422519962,1779024358000,320.00123914,0.00029867,120]
[422519963,1779024411000,408.42658862,0.00030136,120]
[422519965,1779024414000,-24.29661751,0.00012504,2]
[422519964,1779024414000,-239.24457202,0.00012491,2]
[422519966,1779024444000,336.55964082,0.00029873,120]
[422519967,1779024472000,261.55353194,0.00029873,120]
[422519968,1779024546000,1000.0,0.00030136,120]
[422519970,1779024549000,-250.0,0.0001251,2]
[422519969,1779024549000,-159.49638134,0.0001245,2]
[422519973,1779024549000,-250.0,0.00012529,2]
[422519971,1779024549000,-200.0,0.00012512,2]
[422519972,1779024549000,-267.0,0.00012527,2]
[422519974,1779024563000,-2873.50361866,0.00012548,2]
[422519997,1779024632000,-1296.28,0.00012787,2]
[422520000,1779024632000,-1060.89,0.00012842,2]
[422520001,1779024632000,-189.46,0.00012887,2]
[422519999,1779024632000,-9236.66,0.00012814,2]
[422520002,1779024632000,-499.99,0.00012893,2]
[422520006,1779024632000,-999.99,0.00012893,2]
[422520004,1779024632000,-442.97,0.00012893,2]
[422520003,1779024632000,-4801.07,0.00012893,2]
[422519998,1779024632000,-18834.24,0.00012787,2]
[422520008,1779024632000,-15597.09,0.00012893,2]
[422520009,1779024632000,-281.77,0.00013046,2]
[422519996,1779024632000,-150.0,0.00012786,2]
[422520010,1779024632000,-8210.2298772,0.00013108,2]
[422520011,1779024632000,-673.04,0.00013156,2]
[422520012,1779024632000,-281.77,0.00013372,2]
[422520005,1779024632000,-150.99,0.00012893,2]
[422519995,1779024632000,-4541.87,0.0001276,2]
[422519980,1779024632000,-488.64,0.00012549,2]
[422519991,1779024632000,-150.0,0.00012667,2]
[422519976,1779024632000,-1636.21999421,0.00012548,2]
[422519978,1779024632000,-250.0,0.00012548,2]
[422519977,1779024632000,-298.95638713,0.00012548,2]
[422519981,1779024632000,-2201.88,0.00012571,2]
[422519979,1779024632000,-642.59283263,0.00012548,2]
[422520013,1779024632000,-6801.8826,0.00013598,2]
[422519982,1779024632000,-1200.0,0.00012591,2]
[422519985,1779024632000,-2000.0,0.00012595,2]
[422519984,1779024632000,-300.0,0.00012594,2]
[422519987,1779024632000,-150.0,0.00012599,2]
[422519986,1779024632000,-159.49638133,0.00012596,2]
[422519989,1779024632000,-150.0,0.00012635,2]
[422519993,1779024632000,-159.49638133,0.00012742,2]
[422519988,1779024632000,-328.53,0.00012602,2]
[422519994,1779024632000,-150.0,0.0001276,2]
[422519990,1779024632000,-1043.18,0.00012652,2]
[422520016,1779024632000,-801.81,0.00013698,2]
[422519983,1779024632000,-2000.0,0.00012592,2]
[422520019,1779024632000,-801.81,0.00013698,2]
[422520036,1779024632000,-801.81,0.00013698,2]
[422520037,1779024632000,-801.81,0.00013698,2]
[422520034,1779024632000,-801.81,0.00013698,2]
[422520040,1779024632000,-500.0,0.00013698,2]
[422520035,1779024632000,-801.81,0.00013698,2]
[422520042,1779024632000,-2500.0,0.00013699,2]
[422520044,1779024632000,-200.0,0.00013699,2]
[422520043,1779024632000,-166.66,0.00013699,2]
[422520046,1779024632000,-250.0,0.00013754,2]
[422520045,1779024632000,-1000.0,0.00013699,2]
[422520051,1779024632000,-2500.0,0.00013803,2]
[422520047,1779024632000,-300.0,0.00013803,2]
[422520048,1779024632000,-175.3435528,0.00013803,2]
[422520049,1779024632000,-2500.0,0.00013803,2]
[422520050,1779024632000,-2500.0,0.00013803,2]
[422520039,1779024632000,-802.04,0.00013698,2]
[422520038,1779024632000,-801.81,0.00013698,2]
[422520015,1779024632000,-491.01681158,0.00013698,2]
[422520033,1779024632000,-801.81,0.00013698,2]
[422520017,1779024632000,-801.81,0.00013698,2]
[422520018,1779024632000,-801.81,0.00013698,2]
[422520014,1779024632000,-4064.8663,0.00013598,2]
[422520021,1779024632000,-801.81,0.00013698,2]
[422520020,1779024632000,-801.81,0.00013698,2]
[422520023,1779024632000,-801.81,0.00013698,2]
[422520022,1779024632000,-801.81,0.00013698,2]
[422520028,1779024632000,-801.81,0.00013698,2]
[422520041,1779024632000,-281.77,0.00013699,2]
[422520029,1779024632000,-801.81,0.00013698,2]
[422520030,1779024632000,-801.81,0.00013698,2]
[422520027,1779024632000,-801.81,0.00013698,2]
[422520026,1779024632000,-801.81,0.00013698,2]
[422520024,1779024632000,-801.81,0.00013698,2]
[422520032,1779024632000,-801.81,0.00013698,2]
[422520031,1779024632000,-801.81,0.00013698,2]
[422520025,1779024632000,-801.81,0.00013698,2]
[422520082,1779024633000,-1993.8,0.00014497,2]
[422520081,1779024633000,-728.65,0.00014497,2]
[422520078,1779024633000,-21471.6978144,0.00014497,2]
[422520077,1779024633000,-102294.8124121,0.00014497,2]
[422520072,1779024633000,-166.66,0.00014384,2]
[422520084,1779024633000,-2000.0,0.000145,5]
[422520080,1779024633000,-328.94,0.00014497,2]
[422520079,1779024633000,-2861.13,0.00014497,2]
[422520085,1779024633000,-500.0,0.000145,5]
[422520088,1779024633000,-1100.0,0.000146,5]
[422520086,1779024633000,-500.0,0.0001452,2]
[422520074,1779024633000,-2928.76241729,0.00014397,2]
[422520089,1779024633000,-350.0,0.00014621,2]
[422520092,1779024633000,-350.0,0.00014761,2]
[422520090,1779024633000,-6200.0,0.000147,5]
[422520093,1779024633000,-500.0,0.00014794,2]
[422520094,1779024633000,-5000.0,0.000148,2]
[422520095,1779024633000,-171.43545633,0.000148,2]
[422520083,1779024633000,-236.6,0.00014497,2]
[422520075,1779024633000,-1060.89,0.00014448,2]
[422520070,1779024633000,-350.0,0.00014279,2]
[422520073,1779024633000,-2500.0,0.00014397,2]
[422520053,1779024633000,-2500.0,0.00013803,2]
[422520055,1779024633000,-500.0,0.00013803,2]
[422520054,1779024633000,-250.0,0.00013803,2]
[422520052,1779024633000,-2500.0,0.00013803,2]
[422520056,1779024633000,-420.0,0.00013818,2]
[422520057,1779024633000,-1680.0,0.0001385,2]
[422520060,1779024633000,-166.66,0.00013927,2]
[422520058,1779024633000,-1321.07137045,0.00013853,2]
[422520062,1779024633000,-21790.16115563,0.0001399,2]
[422520076,1779024633000,-749.2656944,0.00014497,2]
[422520063,1779024633000,-281.77,0.00014025,2]
[422520061,1779024633000,-500.0,0.00013972,2]
[422520068,1779024633000,-500.0,0.00014246,2]
[422520059,1779024633000,-255.0,0.00013886,2]
[422520064,1779024633000,-6236.67459107,0.00014071,2]
[422520067,1779024633000,-205.08601911,0.00014211,2]
[422520065,1779024633000,-166.66,0.00014155,2]
[422520069,1779024633000,-3148.4917393,0.00014251,2]
[422520097,1779024633000,-2200.0,0.000148,5]
[422520071,1779024633000,-281.77,0.00014351,2]
[422520066,1779024633000,-2000.0,0.0001417,2]
[422520098,1779024633000,-500.0,0.00014864,2]
[422520087,1779024633000,-4100.0,0.000146,5]
[422520101,1779024633000,-500.0,0.00014899,2]
[422520123,1779024633000,-500.0,0.00014899,2]
[422520129,1779024633000,-500.0,0.00014899,2]
[422520130,1779024633000,-500.0,0.00014899,2]
[422520128,1779024633000,-222.19462109,0.00014899,2]
[422520127,1779024633000,-500.0,0.00014899,2]
[422520122,1779024633000,-500.0,0.00014899,2]
[422520124,1779024633000,-639.86,0.00014899,2]
[422520126,1779024633000,-500.0,0.00014899,2]
[422520132,1779024633000,-500.0,0.00014899,2]
[422520125,1779024633000,-505.8622315,0.00014899,2]
[422520131,1779024633000,-500.0,0.00014899,2]
[422520096,1779024633000,-8300.0,0.000148,5]
[422520138,1779024633000,-500.0,0.00014899,2]
[422520140,1779024633000,-500.0,0.00014899,2]
[422520134,1779024633000,-500.0,0.00014899,2]
[422520139,1779024633000,-500.0,0.00014899,2]
[422520135,1779024633000,-500.0,0.00014899,2]
[422520141,1779024633000,-530.09266044,0.00014899,2]
[422520142,1779024633000,-83944.08509486,0.000149,2]
[422520136,1779024633000,-500.0,0.00014899,2]
[422520133,1779024633000,-500.0,0.00014899,2]
[422520121,1779024633000,-500.0,0.00014899,2]
[422520137,1779024633000,-500.0,0.00014899,2]
[422520120,1779024633000,-500.0,0.00014899,2]
[422520119,1779024633000,-500.0,0.00014899,2]
[422520100,1779024633000,-207.73089694,0.0001489,2]
[422520103,1779024633000,-500.0,0.00014899,2]
[422520099,1779024633000,-3148.49173924,0.00014879,2]
[422520105,1779024633000,-500.0,0.00014899,2]
[422520102,1779024633000,-500.0,0.00014899,2]
[422520106,1779024633000,-500.0,0.00014899,2]
[422520104,1779024633000,-500.0,0.00014899,2]
[422520108,1779024633000,-500.0,0.00014899,2]
[422520107,1779024633000,-500.0,0.00014899,2]
[422520091,1779024633000,-1600.0,0.000147,5]
[422520110,1779024633000,-500.0,0.00014899,2]
[422520112,1779024633000,-500.0,0.00014899,2]
[422520114,1779024633000,-500.0,0.00014899,2]
[422520111,1779024633000,-500.0,0.00014899,2]
[422520117,1779024633000,-573.0866294,0.00014899,2]
[422520109,1779024633000,-500.0,0.00014899,2]
[422520116,1779024633000,-500.0,0.00014899,2]
[422520113,1779024633000,-500.0,0.00014899,2]
[422520118,1779024633000,-500.0,0.00014899,2]
[422520115,1779024633000,-500.0,0.00014899,2]
[422520151,1779024638000,-177.94061966,0.000149,2]
[422520150,1779024638000,-163.66,0.00012594,2]
[422520158,1779024638000,-1097.6410103,0.000149,2]
[422520155,1779024638000,-2729.60137026,0.000149,2]
[422520180,1779024640000,-1325.46,0.000149,2]
[422520179,1779024640000,-2261.99891123,0.000149,2]
[422520186,1779024641000,-479466.81986842,0.000149,2]
[422520182,1779024641000,-1152.38968876,0.000149,2]
[422520185,1779024641000,-802.879,0.000149,2]
[422520183,1779024641000,-875.50000001,0.000149,2]
[422520193,1779024643000,-805.73,0.000149,2]
[422520192,1779024643000,-51400.00087668,0.000149,2]
[422520191,1779024643000,-532.80235,0.000149,2]
[422520189,1779024643000,-309.1505948,0.000149,2]
[422520190,1779024643000,-3911.75,0.000149,2]
[422520201,1779024646000,-2422.1565,0.000149,2]
[422520200,1779024646000,-319.24,0.000149,2]
[422520199,1779024646000,-8012.32210412,0.000149,2]
[422520230,1779024737000,-500.0,0.00014496,2]
[422520231,1779024771000,159.89,7.237e-05,2]
[422520232,1779024781000,597.25,0.00027462,120]
[422520233,1779024816000,190.0,0.00030137,120]
[422520234,1779024852000,161.88,0.000301,120]
[422520235,1779024883000,354.56001525,0.00029641,120]
[422520236,1779024905000,169.0,0.00029204,120]
[422520237,1779024917000,345.46752657,0.00029641,120]
[422520238,1779024921000,259.10064493,0.00029641,120]
[422520239,1779024950000,166.54530404,0.00029633,120]
[422520240,1779024952000,249.81795605,0.00029633,120]
[422520242,1779024976000,190.91579577,0.00029633,120]
[422520243,1779024997000,-159.89,0.00010713,2]
[422520244,1779025034000,363.02240947,0.00029633,120]
[422520245,1779025060000,217.81344569,0.00029633,120]
[422520246,1779025088000,163.36008426,0.00029633,120]
[422520247,1779025248000,-342.12098596,0.00011248,2]
[422520257,1779025439000,-3515.441659,0.00011247,2]
[422520258,1779025472000,832.16,0.00030137,120]
[422520259,1779025504000,888.0,0.00030137,120]
[422520260,1779025512000,888.0,0.00030137,120]
[422520262,1779025517000,162.35,6.581e-05,2]
[422520261,1779025517000,162.35,5.876e-05,2]
[422520266,1779025518000,162.35,9.404e-05,2]
[422520265,1779025518000,162.35,8.698e-05,2]
[422520264,1779025518000,162.35,7.993e-05,2]
[422520263,1779025518000,162.35,7.287e-05,2]
[422520267,1779025521000,888.0,0.00030137,120]
[422520268,1779025528000,888.0,0.00030137,120]
[422520269,1779025536000,888.0,0.00030137,120]
[422520270,1779025546000,888.0,0.00030137,120]
[422520271,1779025560000,600.0,0.00030137,120]
[422520272,1779025567000,-162.35,0.0001011,2]
[422520273,1779025567000,-162.35,0.00010815,2]
[422520274,1779025584000,-472.11844338,0.00011121,2]
[422520276,1779025584000,-150.0,0.00011359,2]
[422520279,1779025584000,-162.35,0.00011521,2]
[422520277,1779025584000,-200.0,0.00011457,2]
[422520275,1779025584000,-250.0,0.00011304,2]
[422520278,1779025584000,-150.0,0.00011471,2]
[422520281,1779025584000,-204.0,0.00011762,2]
[422520286,1779025584000,-150.0,0.00011764,2]
[422520282,1779025584000,-300.0,0.00011762,2]
[422520284,1779025584000,-300.0,0.00011762,2]
[422520283,1779025584000,-1200.0,0.00011762,2]
[422520285,1779025584000,-19643.86,0.00011763,2]
[422520287,1779025584000,-1000.0,0.00011804,2]
[422520288,1779025584000,-279.0246376,0.00011863,2]
[422520280,1779025584000,-213.94691902,0.00011664,2]
[422520289,1779025618000,-304.08048512,0.00011703,2]
[422520290,1779025629000,-698.28136388,0.00011703,2]
[422520291,1779025649000,1400.0,0.000125,4]
[422520292,1779025683000,-2364.2553624,0.00011863,2]
[422520293,1779025683000,-636.53,0.00011956,2]
[422520294,1779025683000,-499.2146376,0.00011958,2]
[422520295,1779025699000,348.73804258,0.0002969,120]
[422520296,1779025725000,261.55353193,0.0002969,120]
[422520297,1779025740000,1000.0,0.00030136,120]
[422520298,1779025749000,157.28813366,0.0002969,120]
[422520301,1779025822000,-1094.28,0.00011764,2]
[422520314,1779025831000,-1424.727,0.00012148,2]
[422520308,1779025831000,-505.62818064,0.00011958,2]
[422520309,1779025831000,-179.6,0.00011958,2]
[422520307,1779025831000,-995.15718176,0.00011958,2]
[422520302,1779025831000,-2287.51677326,0.00011673,2]
[422520305,1779025831000,-39.76519216,0.00011673,2]
[422520311,1779025831000,-250.0,0.00012058,2]
[422520303,1779025831000,-1403.8382809,0.00011673,2]
[422520304,1779025831000,-894.17975368,0.00011673,2]
[422520306,1779025831000,-213.94691902,0.00011856,2]
[422520312,1779025831000,-447.98400302,0.00012058,2]
[422520315,1779025831000,-156.165,0.00012148,2]
[422520310,1779025831000,-396.29599698,0.00012058,2]
[422520316,1779025831000,-168.44,0.00012151,2]
[422520317,1779025831000,-420.0,0.0001235,2]
[422520321,1779025831000,-529.8653,0.00012448,2]
[422520319,1779025831000,-1094.28,0.00012352,2]
[422520318,1779025831000,-300.0,0.00012351,2]
[422520320,1779025831000,-2639.69945998,0.00012438,2]
[422520323,1779025831000,-55.97670963,0.00012536,2]
[422520322,1779025831000,-207.73089694,0.00012526,2]
[422520325,1779025831000,-1981.08146221,0.00012536,2]
[422520328,1779025831000,-303.72702952,0.00012536,2]
[422520313,1779025831000,-1200.0,0.00012147,2]
[422520353,1779025837000,-289.4491554,0.00011763,2]
[422520350,1779025837000,-312.50730124,0.00011763,2]